Workbook

Sheet Bank angles
H1: Bank Angle Performance
D3: Density Altitude | E3: 6000 | F3: ft | I3: =VLOOKUP(E3,StdAtm!A11:G142,7) -> 1.093788226 | J3: tas multiplier
A4: Insert values in green | D4: Min Sink spd | E4: 42 | F4: mph | G4: TAS | H4: =E4*I3 -> 46 | I4: =VLOOKUP(F4,reference!$A$2:$D$4,4,FALSE) -> 0.868976 | J4: =F4 &" conversion to knots" -> mph conversion to knots | N4: Note on density altitude effects: Given indicated airspeeds remain valid at any density altitude
D5: Stall Spd | E5: 33 | F5: =F4 -> mph | I5: =VLOOKUP(F4,reference!$A$2:$D$4,2,FALSE) -> 1.46667 | J5: =$F$4 &" conversion to f/s " -> mph conversion to f/s
D6: Min Sink Rate | E6: 186 | F6: ft/min | I6: =VLOOKUP(F4,reference!$A$2:$D$4,3,FALSE) -> 0.682 | J6: =" f/s conversion to "& $F$4 -> f/s conversion to mph
D7: wingspan | E7: 51 | F7: Feet | I7: =VLOOKUP(F7,reference!A9:B10,2,FALSE) -> 1 | J7: ft conversion | K7: =VLOOKUP(F7,reference!A9:B10,2,FALSE)*E7 -> 51.0 | L7: wingspan ft
A8: Bank angle | B8: G load | C8: Stall speed increase | D8: Vs | E8: ="V min sink "& $F$4 -> V min sink mph | F8: sink rate factor | G8: min sink TAS | H8: Min Sink Rate ft/min | I8: % sink rate increase | J8: ROT °/sec | K8: time to turn 360°: sec | L8: altitude loss 360° | M8: altitude loss 180° | N8: turn radius ft | O8: Turn Diameter ft | Q8: circle circumference | R8: effective wing length | S8: outer circumference | T8: inner circumference | U8: wingtip circumference D | V8: Outer Tip Speed ft/s | W8: Inner Tip Speed ft/s | X8: speed D f/s | Y8: ="Speed delta "&$F$4 -> Speed delta mph | Z8: Speed Delta %
A9: 0 | B9: 1.00 | C9: 0.00% | D9: =$E$5 -> 33.0 | E9: =$E$4 -> 42.0 | F9: =(1/COS(RADIANS(A9)))^1.5-1 -> 0.00 | G9: =E9*$I$3 -> 45.9 | H9: =$E$6 -> 186 | I9: =H9/$H$9-1 -> 0% | J9: =(1091*TAN(RADIANS(A9))/(G9/1.1507)) -> 0.0
A10: 5 | B10: 1.004 | C10: =SQRT(B10)-1 -> 0.19% | D10: =( SQRT(B10)*$D$9) -> 33.1 | E10: =( SQRT(B10)*$E$9) -> 42.1 | F10: =(1/COS(RADIANS(A10)))^1.5 -> 1.01 | G10: =E10*$I$3 -> 46.0 | H10: =F10*$H$9 -> 187 | I10: =H10/$H$9-1 -> 1% | J10: =(1091*TAN(RADIANS(A10))/(G10/1.1507)) -> 2.4 | K10: =360/J10 -> 151 | L10: =H10*(K10/60) -> 470 | M10: =L10/2 -> 235 | N10: =((E10*$I$5)*360/J10)/PI()/2 -> 1482 | O10: =N10*2 -> 2964 | Q10: =2*PI()*N10 -> 9311 | R10: =$K$7*(COS(RADIANS(A10))) -> 51 | S10: =2*PI()*(N10+(R10/2)) -> 9470 | T10: =2*PI()*(N10-(R10/2)) -> 9151 | U10: =1-(T10/S10) -> 3.4% | V10: =S10/$K10 -> 62.8 | W10: =T10/$K10 -> 60.7 | X10: =V10-W10 -> 2.1 | Y10: =X10*$I$6 -> 1.4 | Z10: =V10/W10-1 -> 3.5%
A11: 10 | B11: 1.02 | C11: 0.77% | D11: 33.3 | E11: =( SQRT(B11)*$E$9) -> 42.3 | F11: =(1/COS(RADIANS(A11)))^1.5 -> 1.02 | G11: 46.3 | H11: =F11*$H$9 -> 190 | I11: 2% | J11: 4.8 | K11: =360/J11 -> 75 | L11: =H11*(K11/60) -> 239 | M11: =L11/2 -> 119 | N11: =((E11*$I$5)*360/J11)/PI()/2 -> 744 | O11: =N11*2 -> 1488 | Q11: 4673 | R11: =$K$7*(COS(RADIANS(A11))) -> 50 | S11: =2*PI()*(N11+(R11/2)) -> 4831 | T11: =2*PI()*(N11-(R11/2)) -> 4515 | U11: =1-(T11/S11) -> 6.5% | V11: =S11/$K11 -> 64.2 | W11: =T11/$K11 -> 60.0 | X11: =V11-W11 -> 4.2 | Y11: =X11*$I$6 -> 2.9 | Z11: =V11/W11-1 -> 7.0%
A12: 15 | B12: 1.04 | C12: 1.75% | D12: 33.6 | E12: 42.7 | F12: 1.05 | G12: 46.7 | H12: 196 | I12: 5% | J12: 7.2 | K12: 50 | L12: 163 | M12: 82 | N12: 499 | O12: 998 | Q12: 3135 | R12: 49 | S12: 3290 | T12: 2981 | U12: 9.4% | V12: 65.8 | W12: 59.6 | X12: 6.2 | Y12: 4.2 | Z12: 10.4%
A13: 20 | B13: 1.06 | C13: 3.16% | D13: 34.0 | E13: 43.3 | F13: 1.10 | G13: 47.4 | H13: 204 | I13: 10% | J13: 9.6 | K13: 37 | L13: 127 | M13: 64 | N13: 378 | O13: 755 | Q13: 2373 | R13: 48 | S13: 2523 | T13: 2222 | U13: 11.9% | V13: 67.6 | W13: 59.5 | X13: 8.1 | Y13: 5.5 | Z13: 13.6%
A14: 25 | B14: 1.10 | C14: 5.04% | D14: 34.7 | E14: 44.1 | F14: 1.16 | G14: 48.3 | H14: 216 | I14: 16% | J14: 12.1 | K14: 30 | L14: 107 | M14: 53 | N14: 306 | O14: 611 | Q14: 1920 | R14: 46 | S14: 2065 | T14: 1775 | U14: 14.1% | V14: 69.6 | W14: 59.8 | X14: 9.8 | Y14: 6.7 | Z14: 16.4%
A15: 30 | B15: 1.15 | C15: 7.46% | D15: 35.5 | E15: 45.1 | F15: 1.24 | G15: 49.4 | H15: 231 | I15: 24% | J15: 14.7 | K15: 25 | L15: 94 | M15: 47 | N15: 258 | O15: 517 | Q15: 1623 | R15: 44 | S15: 1762 | T15: 1484 | U15: 15.8% | V15: 71.9 | W15: 60.5 | X15: 11.3 | Y15: 7.7 | Z15: 18.7%
A16: 35 | B16: 1.22 | C16: 10.49% | D16: 36.5 | E16: 46.4 | F16: 1.35 | G16: 50.8 | H16: 251 | I16: 35% | J16: 17.3 | K16: 21 | L16: 87 | M16: 43 | N16: 225 | O16: 450 | Q16: 1415 | R16: 42 | S16: 1546 | T16: 1284 | U16: 17.0% | V16: 74.4 | W16: 61.7 | X16: 12.6 | Y16: 8.6 | Z16: 20.5%
A17: 40 | B17: 1.31 | C17: 14.25% | D17: 37.7 | E17: 48.0 | F17: 1.49 | G17: 52.5 | H17: 277 | I17: 49% | J17: 20.1 | K17: 18 | L17: 83 | M17: 41 | N17: 201 | O17: 402 | Q17: 1262 | R17: 39 | S17: 1385 | T17: 1140 | U17: 17.7% | V17: 77.2 | W17: 63.5 | X17: 13.7 | Y17: 9.3 | Z17: 21.5%
A18: 45 | B18: 1.41 | C18: 18.92% | D18: 39.2 | E18: 49.9 | F18: 1.68 | G18: 54.6 | H18: 313 | I18: 68% | J18: 23.0 | K18: 16 | L18: 82 | M18: 41 | N18: 183 | O18: 365 | Q18: 1148 | R18: 36 | S18: 1261 | T18: 1034 | U18: 18.0% | V18: 80.5 | W18: 66.0 | X18: 14.5 | Y18: 9.9 | Z18: 21.9%
A19: 50 | B19: 1.56 | C19: 24.73% | D19: 41.2 | E19: 52.4 | F19: 1.94 | G19: 57.3 | H19: 361 | I19: 94% | J19: 26.1 | K19: 14 | L19: 83 | M19: 41 | N19: 169 | O19: 337 | Q19: 1059 | R19: 33 | S19: 1162 | T19: 956 | U19: 17.7% | V19: 84.3 | W19: 69.4 | X19: 14.9 | Y19: 10.2 | Z19: 21.5%
A20: 55 | B20: 1.74 | C20: 32.04% | D20: 43.6 | E20: 55.5 | F20: 2.30 | G20: 60.7 | H20: 428 | I20: 130% | J20: 29.6 | K20: 12 | L20: 87 | M20: 43 | N20: 158 | O20: 315 | Q20: 991 | R20: 29 | S20: 1083 | T20: 899 | U20: 17.0% | V20: 88.9 | W20: 73.8 | X20: 15.1 | Y20: 10.3 | Z20: 20.5%
A21: 60 | B21: 2.00 | C21: 41.42% | D21: 46.7 | E21: 59.4 | F21: 2.83 | G21: 65.0 | H21: 526 | I21: 183% | J21: 33.5 | K21: 11 | L21: 94 | M21: 47 | N21: 149 | O21: 298 | Q21: 937 | R21: 26 | S21: 1017 | T21: 857 | U21: 15.8% | V21: 94.6 | W21: 79.7 | X21: 14.9 | Y21: 10.2 | Z21: 18.7%
A22: 65 | B22: 2.37 | C22: 53.82% | D22: 50.8 | E22: 64.6 | F22: 3.64 | G22: 70.7 | H22: 677 | I22: 264% | J22: 38.1 | K22: 9 | L22: 107 | M22: 53 | N22: 143 | O22: 285 | Q22: 895 | R22: 22 | S22: 963 | T22: 828 | U22: 14.1% | V22: 101.9 | W22: 87.6 | X22: 14.3 | Y22: 9.8 | Z22: 16.4%
A23: 70 | B23: 2.92 | C23: 70.99% | D23: 56.4 | E23: 71.8 | F23: 5.00 | G23: 78.6 | H23: 930 | I23: 400% | J23: 43.9 | K23: 8 | L23: 127 | M23: 64 | N23: 137 | O23: 275 | Q23: 864 | R23: 17 | S23: 918 | T23: 809 | U23: 11.9% | V23: 112.0 | W23: 98.6 | X23: 13.4 | Y23: 9.1 | Z23: 13.6%
B24: cosine bank angle | C24: sqrt gload increase

Sheet reference
B1: ft/sec conversion | C1: inverse ft/sec | D1: kts conversion
A2: mph | B2: 1.46667 | C2: =1/B2 -> 0.6818166322 | D2: 0.868976
A3: knots | B3: 1.688 | C3: =1/B3 -> 0.5924170616 | D3: 1
A4: kph | B4: 0.911 | C4: 1.097694841 | D4: 0.539
A8: converstion to feet
A9: Feet | B9: 1
A10: Meters | B10: 3.28084
A14: g load rescaling array | C14: factor | D14: 30
A15: ='Bank angles'!B9 -> 1.0 | C15: =A15*$D$14-($D$14-10) -> 10.0
A16: ='Bank angles'!B10 -> 1.0 | C16: =A16*$D$14-($D$14-10) -> 10.1
A17: ='Bank angles'!B11 -> 1.0 | C17: 10.5
A18: ='Bank angles'!B12 -> 1.0 | C18: 11.1
A19: ='Bank angles'!B13 -> 1.1 | C19: 11.9
A20: ='Bank angles'!B14 -> 1.1 | C20: 13.1
A21: ='Bank angles'!B15 -> 1.2 | C21: 14.6
A22: ='Bank angles'!B16 -> 1.2 | C22: 16.6
A23: ='Bank angles'!B17 -> 1.3 | C23: 19.2
A24: ='Bank angles'!B18 -> 1.4 | C24: 22.4
A25: ='Bank angles'!B19 -> 1.6 | C25: 26.7
A26: ='Bank angles'!B20 -> 1.7 | C26: 32.3
A27: ='Bank angles'!B21 -> 2.0 | C27: 40.0
A28: ='Bank angles'!B22 -> 2.4 | C28: 51.0
A29: ='Bank angles'!B23 -> 2.9 | C29: 67.7

Sheet StdAtm
A1: 1976 Standard Atmosphere up to 20km (65617 ft)
A4: 0 | B4: 0 | C4: 4 | D4: 1 | E4: 2 | J4: 1 | K4: 0 | L4: 3 | M4: 2 | N4: 3 | R4: cas | S4: 100
A5: =IF(A4=0,"ft","meter") -> ft | B5: =IF(B4=0," C"," F") -> C | C5: =IF(C4=1,"psi",IF(C4=2,"in Hg",IF(C4=3,"hPa mB",IF(C4=4,"lbs/ft2","atm")))) -> lbs/ft2 | D5: =IF(D4=1,"slugs/ft3",IF(D4=2,"kg/m3","SL rho0")) -> slugs/ft3 | E5: =IF(E4=1,"ft/sec",IF(E4=2,"knots","m/sec")) -> knots | G5: tas muliplyer | J5: =IF(J4=0,"ft","meter") -> meter | K5: =IF(K4=0," C"," F") -> C | L5: =IF(L4=1,"psi",IF(L4=2,"in Hg",IF(L4=3,"hPa mB",IF(L4=4,"lbs/ft2","atm")))) -> hPa mB | M5: =IF(M4=1,"slugs/ft3",IF(M4=2,"kg/m3","SL rho0")) -> kg/m3 | N5: =IF(N4=1,"ft/sec",IF(N4=2,"knots","m/sec")) -> m/sec | R5: alt | S5: 15000
C6: =IF(C4=1,14.69595,IF(C4=2,29.92126,IF(C4=3,1013.25,IF(C4=4,2116.2166,1)))) -> 2116.2166 | D6: =IF(D4=1,0.002376892,IF(D4=2,1.225,1)) -> 0.002376892 | E6: =IF(E4=1,1.687809,IF(E4=2,1,0.5144442)) -> 1 | L6: =IF(L4=1,14.69595,IF(L4=2,29.92126,IF(L4=3,1013.25,IF(L4=4,2116.2166,1)))) -> 1013.25 | M6: =IF(M4=1,0.002376892,IF(M4=2,1.225,1)) -> 1.225 | N6: =IF(N4=1,1.687809,IF(N4=2,1,0.5144442)) -> 0.5144442
A7: Height | B7: Temp | C7: Pressure | D7: Density | E7: Sound Speed | F7: sigma | G7: inv sigma | H7: sqrt sigma | J7: Height | K7: Temp | L7: Pressure | M7: Density | N7: Sound Speed | S7: =FORECAST(S5,G11:G142,A11:A142) -> 1.249707841
A8: 1575.42 | B8: =stdattemp(A8,A$4,B$4) -> 11.9 | C8: =stdatpress(A8,A$4)*C$6 -> 1998.4821 | D8: =stdatdens(A8,A$4)*D$6 -> 0.002269235178 | E8: =stdatcs(IF(B$4=0,B8,(B8-32)*5/9))*E$6 -> 657.89 | F8: =D8/$D$11 -> 0.9547068937 | G8: =SQRT($D$11/D8) -> 1.023446089 | H8: =SQRT(F8) -> 0.9770910365 | J8: 15064 | K8: =stdattemp(J8,J$4,K$4) -> -56.5 | L8: =stdatpress(J8,J$4)*L$6 -> 119.2361 | M8: =stdatdens(J8,J$4)*M$6 -> 0.1917287267 | N8: =stdatcs(IF(K$4=0,K8,(K8-32)*5/9))*N$6 -> 295.07
A9: 11111 | B9: =stdattemp(A9,A$4,B$4) -> -7.0 | C9: =stdatpress(A9,A$4)*C$6 -> 1393.6735 | D9: =stdatdens(A9,A$4)*D$6 -> 0.001694821349 | E9: =stdatcs(IF(B$4=0,B9,(B9-32)*5/9))*E$6 -> 635.71 | F9: 0.7130409581 | G9: =SQRT($D$11/D9) -> 1.184248277 | H9: =SQRT(F9) -> 0.8444175259 | J9: 333 | K9: =stdattemp(J9,J$4,K$4) -> 12.8 | L9: =stdatpress(J9,J$4)*L$6 -> 973.8805 | M9: =stdatdens(J9,J$4)*M$6 -> 1.18631424 | N9: =stdatcs(IF(K$4=0,K9,(K9-32)*5/9))*N$6 -> 339.01 | R9: tas= | S9: =S4*S7 -> 124.9707841
A10: -500 | B10: 16.0 | C10: 2154.7345 | D10: 0.002411863037 | E10: 662.61 | F10: 1.014712926 | G10: 0.9927237306 | H10: 1.007329602 | J10: -400 | K10: 17.6 | L10: 1062.2343 | M10: 1.272737085 | N10: 341.83
A11: 0 | B11: 15.0 | C11: 2116.2166 | D11: 0.002376892 | E11: 661.48 | F11: 1 | G11: 1 | H11: 1 | J11: -200 | K11: 16.3 | L11: 1037.5081 | M11: 1.24869403 | N11: 341.06
A12: 500 | B12: 14.0 | C12: 2078.2582 | D12: 0.002342310213 | E12: 660.34 | F12: 0.9854508377 | G12: 1.007354935 | H12: 0.9926987648 | J12: 0 | K12: 15.0 | L12: 1013.2500 | M12: 1.225 | N12: 340.29
A13: 1000 | B13: 13.0 | C13: 2040.8529 | D13: 0.002308114662 | E13: 659.20 | F13: 0.9710641721 | G13: 1.014789663 | H13: 0.9854258836 | J13: 200 | K13: 13.7 | L13: 989.4532 | M13: 1.201651467 | N13: 339.53
A14: 1500 | B14: 12.0 | C14: 2003.9947 | D14: 0.00227430235 | E14: 658.06 | F14: 0.9568387413 | G14: 1.022305329 | H14: 0.9781813438 | J14: 400 | K14: 12.4 | L14: 966.1111 | M14: 1.178644926 | N14: 338.76 | S14: =TREND(G10:G142,A10:A142,S5,1) -> 1.256513516
A15: 2000 | B15: 11.0 | C15: 1967.6774 | D15: 0.002240870289 | E15: 656.91 | F15: 0.9427732891 | G15: 1.0299031 | H15: 0.9709651328 | J15: 600 | K15: 11.1 | L15: 943.2168 | M15: 1.15597689 | N15: 337.98
A16: 2500 | B16: 10.0 | C16: 1931.8948 | D16: 0.002207815506 | E16: 655.77 | F16: 0.9288665645 | G16: 1.037584164 | H16: 0.963777238 | J16: 800 | K16: 9.8 | L16: 920.7638 | M16: 1.133643893 | N16: 337.21 | S16: =VLOOKUP(S5,A11:G142,7) -> 1.260644652
A17: 3000 | B17: 9.1 | C17: 1896.6410 | D17: 0.002175135042 | E17: 654.62 | F17: 0.9151173221 | G17: 1.045349731 | H17: 0.9566176468 | J17: 1000 | K17: 8.5 | L17: 898.7456 | M17: 1.111642487 | N17: 336.43 | R17: tas | S17: =S4*S16 -> 126.0644652
A18: 3500 | B18: 8.1 | C18: 1861.9099 | D18: 0.002142825949 | E18: 653.47 | F18: 0.9015243221 | G18: 1.053201032 | H18: 0.9494863465 | J18: 1200 | K18: 7.2 | L18: 877.1557 | M18: 1.089969247 | N18: 335.66
A19: 4000 | B19: 7.1 | C19: 1827.6956 | D19: 0.002110885293 | E19: 652.32 | F19: 0.8880863299 | G19: 1.06113932 | H19: 0.9423833243 | J19: 1400 | K19: 5.9 | L19: 855.9877 | M19: 1.068620764 | N19: 334.88 | S19: =LINEST(G11:G140,A11:A140,S5) -> 3.864696823e-05
A20: 4500 | B20: 6.1 | C20: 1793.9922 | D20: 0.002079310152 | E20: 651.17 | F20: 0.8748021165 | G20: 1.069165872 | H20: 0.9353085675 | J20: 1600 | K20: 4.6 | L20: 835.2353 | M20: 1.047593652 | N20: 334.10
A21: 5000 | B21: 5.1 | C21: 1760.7938 | D21: 0.002048097619 | E21: 650.01 | F21: 0.8616704583 | G21: 1.077281987 | H21: 0.9282620634 | J21: 1800 | K21: 3.3 | L21: 814.8921 | M21: 1.026884543 | N21: 333.31
A22: 5500 | B22: 4.1 | C22: 1728.0947 | D22: 0.002017244797 | E22: 648.85 | F22: 0.8486901371 | G22: 1.085488989 | H22: 0.9212437989 | J22: 2000 | K22: 2.0 | L22: 794.9520 | M22: 1.006490089 | N22: 332.53
A23: 6000 | B23: 3.1 | C23: 1695.8890 | D23: 0.001986748805 | E23: 647.69 | F23: 0.8358599402 | G23: 1.093788226 | H23: 0.9142537614 | J23: 2200 | K23: 0.7 | L23: =stdatpress(J23,J$4)*L$6 -> 775.4089 | M23: =stdatdens(J23,J$4)*M$6 -> 0.9864069623 | N23: 331.74
A24: 6500 | B24: 2.1 | C24: 1664.1710 | D24: 0.001956606772 | E24: 646.53 | F24: 0.8231786604 | G24: 1.102181071 | H24: 0.9072919378 | J24: 2400 | K24: -0.6 | L24: 756.2566 | M24: 0.9666318547 | N24: 330.95
A25: 7000 | B25: 1.1 | C25: 1632.9351 | D25: 0.001926815843 | E25: 645.36 | F25: 0.8106450957 | G25: 1.110668923 | H25: 0.9003583152 | J25: 2600 | K25: -1.9 | L25: 737.4892 | M25: 0.9471614773 | N25: 330.16
A26: 7500 | B26: 0.1 | C26: 1602.1757 | D26: 0.001897373172 | E26: 644.20 | F26: 0.7982580497 | G26: 1.119253205 | H26: 0.8934528805 | J26: 2800 | K26: -3.2 | L26: 719.1007 | M26: 0.9279925609 | N26: 329.37
A27: 8000 | B27: -0.8 | C27: 1571.8871 | D27: 0.00186827593 | E27: 643.03 | F27: 0.7860163314 | G27: 1.127935369 | H27: 0.8865756208 | J27: 3000 | K27: -4.5 | L27: 701.0853 | M27: 0.9091218563 | N27: 328.58
A28: 8500 | B28: -1.8 | C28: 1542.0638 | D28: 0.001839521298 | E28: 641.86 | F28: 0.7739187551 | G28: 1.136716893 | H28: 0.8797265229 | J28: 3200 | K28: -5.8 | L28: 683.4370 | M28: 0.8905461334 | N28: 327.78
A29: 9000 | B29: -2.8 | C29: 1512.7004 | D29: 0.00181110647 | E29: 640.69 | F29: 0.7619641407 | G29: 1.145599284 | H29: 0.8729055738 | J29: 3400 | K29: -7.1 | L29: 666.1503 | M29: 0.872262182 | N29: 326.98
A30: 9500 | B30: -3.8 | C30: 1483.7914 | D30: 0.001783028655 | E30: 639.51 | F30: 0.7501513133 | G30: 1.154584075 | H30: 0.8661127602 | J30: 3600 | K30: -8.4 | L30: 649.2193 | M30: 0.8542668114 | N30: 326.18
A31: 10000 | B31: -4.8 | C31: 1455.3313 | D31: 0.001755285073 | E31: 638.33 | F31: 0.7384791035 | G31: 1.163672831 | H31: 0.8593480689 | J31: 3800 | K31: -9.7 | L31: 632.6384 | M31: 0.8365568502 | N31: 325.38
A32: 10500 | B32: -5.8 | C32: 1427.3150 | D32: 0.001727872957 | E32: 637.15 | F32: 0.7269463472 | G32: 1.172867145 | H32: 0.8526114867 | J32: 4000 | K32: -11.0 | L32: 616.4021 | M32: 0.8191291469 | N32: 324.58
A33: 11000 | B33: -6.8 | C33: 1399.7369 | D33: 0.001700789553 | E33: 635.97 | F33: 0.7155518859 | G33: 1.182168641 | H33: 0.8459030003 | J33: 4200 | K33: -12.3 | L33: 600.5049 | M33: 0.8019805691 | N33: 323.77
A34: 11500 | B34: -7.8 | C34: 1372.5919 | D34: 0.00167403212 | E34: 634.79 | F34: 0.7042945662 | G34: 1.191578974 | H34: 0.8392225963 | J34: 4400 | K34: -13.6 | L34: 584.9414 | M34: 0.7851080041 | N34: 322.96
A35: 12000 | B35: -8.8 | C35: 1345.8748 | D35: 0.001647597929 | E35: 633.60 | F35: 0.6931732402 | G35: 1.201099831 | H35: 0.8325702614 | J35: 4600 | K35: -14.9 | L35: 569.7060 | M35: 0.7685083584 | N35: 322.16
A36: 12500 | B36: -9.8 | C36: 1319.5803 | D36: 0.001621484265 | E36: 632.41 | F36: 0.6821867654 | G36: 1.210732931 | H36: 0.8259459821 | J36: 4800 | K36: -16.2 | L36: 554.7936 | M36: 0.752178558 | N36: 321.34
A37: 13000 | B37: -10.8 | C37: 1293.7033 | D37: 0.001595688425 | E37: 631.22 | F37: 0.6713340046 | G37: 1.220480028 | H37: 0.819349745 | J37: 5000 | K37: -17.5 | L37: 540.1989 | M37: 0.7361155483 | N37: 320.53
A38: 13500 | B38: -11.7 | C38: 1268.2388 | D38: 0.001570207718 | E38: 630.03 | F38: 0.6606138261 | G38: 1.230342909 | H38: 0.8127815365 | J38: 5200 | K38: -18.8 | L38: 525.9166 | M38: 0.7203162941 | N38: 319.71
A39: 14000 | B39: -12.7 | C39: 1243.1817 | D39: 0.001545039468 | E39: 628.84 | F39: 0.6500251033 | G39: 1.240323395 | H39: 0.8062413431 | J39: 5400 | K39: -20.1 | L39: 511.9416 | M39: 0.7047777794 | N39: 318.90
A40: 14500 | B40: -13.7 | C40: 1218.5270 | D40: 0.001520181009 | E40: 627.64 | F40: 0.6395667153 | G40: 1.250423345 | H40: 0.7997291512 | J40: 5600 | K40: -21.4 | L40: 498.2689 | M40: 0.6894970075 | N40: 318.07
A41: 15000 | B41: -14.7 | C41: 1194.2697 | D41: 0.001495629689 | E41: 626.44 | F41: 0.6292375461 | G41: 1.260644652 | H41: 0.7932449471 | J41: 5800 | K41: -22.7 | L41: 484.8933 | M41: 0.6744710011 | N41: 317.25
A42: 15500 | B42: -15.7 | C42: 1170.4049 | D42: 0.00147138287 | E42: 625.24 | F42: 0.6190364854 | G42: 1.270989248 | H42: 0.7867887171 | J42: 6000 | K42: -24.0 | L42: 471.8100 | M42: 0.6596968021 | N42: 316.43
A43: 16000 | B43: -16.7 | C43: 1146.9277 | D43: 0.001447437924 | E43: 624.03 | F43: 0.6089624281 | G43: 1.281459104 | H43: 0.7803604476 | J43: 6200 | K43: -25.3 | L43: 459.0140 | M43: 0.6451714714 | N43: 315.60
A44: 16500 | B44: -17.7 | C44: 1123.8333 | D44: 0.001423792237 | E44: 622.83 | F44: 0.5990142744 | G44: 1.292056229 | H44: 0.7739601246 | J44: 6400 | K44: -26.6 | L44: 446.5005 | M44: 0.6308920894 | N44: 314.77
A45: 17000 | B45: -18.7 | C45: 1101.1170 | D45: 0.001400443208 | E45: 621.62 | F45: 0.58919093 | G45: 1.302782673 | H45: 0.7675877344 | J45: 6600 | K45: -27.9 | L45: 434.2647 | M45: 0.6168557556 | N45: 313.94
A46: 17500 | B46: -19.7 | C46: 1078.7738 | D46: 0.001377388248 | E46: 620.41 | F46: 0.5794913056 | G46: 1.313640525 | H46: 0.7612432631 | J46: 6800 | K46: -29.2 | L46: 422.3018 | M46: 0.6030595885 | N46: 313.11
A47: 18000 | B47: -20.7 | C47: 1056.7992 | D47: 0.001354624782 | E47: 619.19 | F47: 0.5699143174 | G47: 1.32463192 | H47: 0.7549266967 | J47: 7000 | K47: -30.5 | L47: 410.6072 | M47: 0.5895007259 | N47: 312.27
A48: 18500 | B48: -21.7 | C48: 1035.1885 | D48: 0.001332150245 | E48: 617.98 | F48: 0.560458887 | G48: 1.335759034 | H48: 0.7486380213 | J48: 7200 | K48: -31.8 | L48: 399.1762 | M48: 0.5761763246 | N48: 311.44
A49: 19000 | B49: -22.6 | C49: 1013.9370 | D49: 0.001309962087 | E49: 616.76 | F49: 0.5511239411 | G49: 1.347024086 | H49: 0.7423772229 | J49: 7400 | K49: -33.1 | L49: 388.0042 | M49: 0.5630835603 | N49: 310.60
A50: 19500 | B50: -23.6 | C50: 993.0402 | D50: 0.001288057769 | E50: 615.54 | F50: 0.5419084118 | G50: 1.358429342 | H50: 0.7361442874 | J50: 7600 | K50: -34.4 | L50: 377.0868 | M50: 0.5502196281 | N50: 309.75
A51: 20000 | B51: -24.6 | C51: 972.4935 | D51: 0.001266434766 | E51: 614.32 | F51: 0.5328112366 | G51: 1.369977115 | H51: 0.7299392006 | J51: 7800 | K51: -35.7 | L51: 366.4195 | M51: 0.5375817419 | N51: 308.91
A52: 20500 | B52: -25.6 | C52: 952.2924 | D52: 0.001245090564 | E52: 613.09 | F52: 0.523831358 | G52: 1.381669763 | H52: 0.7237619484 | J52: 8000 | K52: -37.0 | L52: 355.9979 | M52: 0.5251671345 | N52: 308.06
A53: 21000 | B53: -26.6 | C53: 932.4324 | D53: 0.001224022663 | E53: 611.86 | F53: 0.514967724 | G53: 1.393509696 | H53: 0.7176125166 | J53: 8200 | K53: -38.3 | L53: 345.8175 | M53: 0.5129730579 | N53: 307.21
A54: 21500 | B54: -27.6 | C54: 912.9091 | D54: 0.001203228576 | E54: 610.63 | F54: 0.5062192878 | G54: 1.405499372 | H54: 0.7114908909 | J54: 8400 | K54: -39.6 | L54: 335.8742 | M54: 0.5009967828 | N54: 306.36
A55: 22000 | B55: -28.6 | C55: 893.7182 | D55: 0.001182705825 | E55: 609.40 | F55: 0.497585008 | G55: 1.417641299 | H55: 0.705397057 | J55: 8600 | K55: -40.9 | L55: 326.1637 | M55: 0.489235599 | N55: 305.51
A56: 22500 | B56: -29.6 | C56: 874.8552 | D56: 0.001162451948 | E56: 608.16 | F56: 0.4890638483 | G56: 1.42993804 | H56: 0.6993310005 | J56: 8800 | K56: -42.2 | L56: 316.6818 | M56: 0.477686815 | N56: 304.65
A57: 23000 | B57: -30.6 | C57: 856.3160 | D57: 0.001142464496 | E57: 606.93 | F57: 0.4806547776 | G57: 1.44239221 | H57: 0.693292707 | J57: 9000 | K57: -43.5 | L57: 307.4243 | M57: 0.4663477583 | N57: 303.79
A58: 23500 | B58: -31.6 | C58: 838.0961 | D58: 0.001122741028 | E58: 605.69 | F58: 0.4723567702 | G58: 1.455006481 | H58: 0.687282162 | J58: 9200 | K58: -44.8 | L58: 298.3872 | M58: 0.4552157752 | N58: 302.93
A59: 24000 | B59: -32.5 | C59: 820.1914 | D59: 0.001103279121 | E59: 604.44 | F59: 0.4641688058 | G59: 1.467783579 | H59: 0.6812993511 | J59: 9400 | K59: -46.1 | L59: 289.5664 | M59: 0.4442882308 | N59: 302.07
A60: 24500 | B60: -33.5 | C60: 802.5978 | D60: 0.001084076361 | E60: 603.20 | F60: 0.4560898689 | G60: 1.48072629 | H60: 0.6753442595 | J60: 9600 | K60: -47.4 | L60: 280.9580 | M60: 0.4335625088 | N60: 301.20
A61: 25000 | B61: -34.5 | C61: 785.3109 | D61: 0.001065130346 | E61: 601.95 | F61: 0.4481189496 | G61: 1.493837459 | H61: 0.6694168728 | J61: 9800 | K61: -48.7 | L61: 272.5579 | M61: 0.4230360119 | N61: 300.33
A62: 25500 | B62: -35.5 | C62: 768.3268 | D62: 0.00104643869 | E62: 600.70 | F62: 0.4402550431 | G62: 1.50711999 | H62: 0.6635171762 | J62: 10000 | K62: -50.0 | L62: 264.3624 | M62: 0.4127061614 | N62: 299.46
A63: 26000 | B63: -36.5 | C63: 751.6414 | D63: 0.001027999015 | E63: 599.45 | F63: 0.4324971498 | G63: 1.520576853 | H63: 0.6576451549 | J63: 10200 | K63: -51.3 | L63: 256.3676 | M63: 0.4025703972 | N63: 298.59
A64: 26500 | B64: -37.5 | C64: 735.2506 | D64: 0.00100980896 | E64: 598.19 | F64: 0.4248442754 | G64: 1.534211079 | H64: 0.6518007943 | J64: 10400 | K64: -52.6 | L64: 248.5697 | M64: 0.3926261781 | N64: 297.71
A65: 27000 | B65: -38.5 | C65: 719.1504 | D65: 0.0009918661713 | E65: 596.93 | F65: 0.4172954309 | G65: 1.548025767 | H65: 0.6459840794 | J65: 10600 | K65: -53.9 | L65: 240.9650 | M65: 0.3828709813 | N65: 296.83
A66: 27500 | B66: -39.5 | C66: 703.3369 | D66: 0.0009741683118 | E66: 595.67 | F66: 0.4098496321 | G66: 1.562024082 | H66: 0.6401949954 | J66: 10800 | K66: -55.2 | L66: 233.5498 | M66: 0.3733023027 | N66: 295.95
A67: 28000 | B67: -40.5 | C67: 687.8062 | D67: 0.000956713055 | E67: 594.41 | F67: 0.4025059006 | G67: 1.576209259 | H67: 0.6344335273 | J67: 11000 | K67: -56.5 | L67: 226.3204 | M67: 0.3639176568 | N67: 295.07
A68: 28500 | B68: -41.5 | C68: 672.5543 | D68: 0.0009394980868 | E68: 593.14 | F68: 0.3952632626 | G68: 1.590584604 | H68: 0.6286996601 | J68: 11200 | K68: -56.5 | L68: 219.2942 | M68: 0.3526196231 | N68: 295.07
A69: 29000 | B69: -42.5 | C69: 657.5775 | D69: 0.0009225211056 | E69: 591.87 | F69: 0.3881207499 | G69: 1.605153496 | H69: 0.6229933787 | J69: 11400 | K69: -56.5 | L69: 212.4860 | M69: 0.3416723434 | N69: 295.07
A70: 29500 | B70: -43.4 | C70: 642.8718 | D70: 0.0009057798221 | E70: 590.60 | F70: 0.3810773995 | G70: 1.619919389 | H70: 0.6173146681 | J70: 11600 | K70: -56.5 | L70: 205.8893 | M70: 0.3310649284 | N70: 295.07
A71: 30000 | B71: -44.4 | C71: 628.4336 | D71: 0.0008892719595 | E71: 589.32 | F71: 0.3741322532 | G71: 1.634885813 | H71: 0.611663513 | J71: 11800 | K71: -56.5 | L71: 199.4973 | M71: 0.3207868266 | N71: 295.07
A72: 30500 | B72: -45.4 | C72: 614.2591 | D72: 0.0008729952529 | E72: 588.04 | F72: 0.3672843583 | G72: 1.650056379 | H72: 0.6060398982 | J72: 12000 | K72: -56.5 | L72: 193.3038 | M72: 0.3108278144 | N72: 295.07
A73: 31000 | B73: =stdattemp(A73,A$4,B$4) -> -46.4 | C73: =stdatpress(A73,A$4)*C$6 -> 600.3446 | D73: =stdatdens(A73,A$4)*D$6 -> 0.00085694745 | E73: =stdatcs(IF(B$4=0,B73,(B73-32)*5/9))*E$6 -> 586.76 | F73: =D73/$D$11 -> 0.3605327672 | G73: =SQRT($D$11/D73) -> 1.665434776 | H73: =SQRT(F73) -> 0.6004438085 | J73: 12200 | K73: =stdattemp(J73,J$4,K$4) -> -56.5 | L73: 187.3026 | M73: 0.3011779855 | N73: =stdatcs(IF(K$4=0,K73,(K73-32)*5/9))*N$6 -> 295.07
A74: 31500 | B74: -47.4 | C74: 586.6864 | D74: 0.0008411263108 | E74: 585.48 | F74: 0.3538765374 | G74: 1.68102478 | H74: 0.5948752284 | J74: 12400 | K74: -56.5 | L74: 181.4877 | M74: 0.2918277412 | N74: 295.07
A75: 32000 | B75: -48.4 | C75: 573.2809 | D75: 0.0008255296072 | E75: 584.20 | F75: 0.3473147317 | G75: 1.696830249 | H75: 0.5893341426 | J75: 12600 | K75: -56.5 | L75: 175.8533 | M75: 0.2827677805 | N75: 295.07
A76: 32500 | B76: -49.4 | C76: 560.1246 | D76: 0.0008101551238 | E76: 582.91 | F76: 0.3408464179 | G76: 1.712855131 | H76: 0.5838205357 | J76: 12800 | K76: -56.5 | L76: 170.3938 | M76: 0.2739890916 | N76: 295.07
A77: 33000 | B77: -50.4 | C77: 547.2138 | D77: 0.0007950006572 | E77: 581.61 | F77: 0.3344706689 | G77: 1.729103463 | H77: 0.578334392 | J77: 13000 | K77: -56.5 | L77: 165.1039 | M77: 0.2654829421 | N77: 295.07
A78: 33500 | B78: -51.4 | C78: 534.5450 | D78: 0.0007800640161 | E78: 580.32 | F78: 0.328186563 | G78: 1.745579376 | H78: 0.572875696 | J78: 13200 | K78: -56.5 | L78: 159.9781 | M78: 0.257240871 | N78: 295.07
A79: 34000 | B79: -52.4 | C79: 522.1148 | D79: 0.0007653430217 | E79: 579.02 | F79: 0.3219931834 | G79: 1.762287096 | H79: 0.567444432 | J79: 13400 | K79: -56.5 | L79: 155.0115 | M79: 0.2492546797 | N79: 295.07
A80: 34500 | B80: -53.4 | C80: 509.9197 | D80: 0.0007508355071 | E80: 577.72 | F80: 0.3158896185 | G80: 1.779230945 | H80: 0.5620405844 | J80: 13600 | K80: -56.5 | L80: 150.1991 | M80: 0.2415164243 | N80: 295.07
A81: 35000 | B81: -54.3 | C81: 497.9562 | D81: 0.0007365393177 | E81: 576.42 | F81: 0.3098749618 | G81: 1.796415348 | H81: 0.5566641373 | J81: 13800 | K81: -56.5 | L81: 145.5361 | M81: 0.2340184075 | N81: 295.07
A82: 35500 | B82: -55.3 | C82: 486.2211 | D82: 0.0007224523112 | E82: 575.11 | F82: 0.303948312 | G82: 1.813844833 | H82: 0.5513150751 | J82: 14000 | K82: -56.5 | L82: 141.0178 | M82: 0.226753171 | N82: 295.07
A83: 36000 | B83: -56.3 | C83: 474.7109 | D83: 0.0007085723571 | E83: 573.80 | F83: 0.2981087728 | G83: 1.831524032 | H83: 0.5459933816 | J83: 14200 | K83: -56.5 | L83: 136.6398 | M83: 0.2197134879 | N83: 295.07
A84: 36500 | B84: -56.5 | C84: 463.4396 | D84: 0.0006923128371 | E84: 573.57 | F84: 0.2912681085 | G84: 1.852906617 | H84: 0.5396926056 | J84: 14400 | K84: -56.5 | L84: 132.3978 | M84: 0.2128923559 | N84: 295.07
A85: 37000 | B85: -56.5 | C85: 452.4351 | D85: 0.0006758736837 | E85: 573.57 | F85: 0.2843518695 | G85: 1.875305192 | H85: 0.5332465372 | J85: 14600 | K85: -56.5 | L85: 128.2874 | M85: 0.2062829898 | N85: 295.07
A86: 37500 | B86: -56.5 | C86: 441.6919 | D86: 0.0006598248824 | E86: 573.57 | F86: 0.2775998583 | G86: 1.897974529 | H86: 0.5268774604 | J86: 14800 | K86: -56.5 | L86: 124.3046 | M86: 0.1998788154 | N86: 295.07
A87: 38000 | B87: -56.5 | C87: 431.2038 | D87: 0.0006441571642 | E87: 573.57 | F87: 0.2710081755 | G87: 1.920917901 | H87: 0.5205844557 | J87: 15000 | K87: -56.5 | L87: =stdatpress(J87,J$4)*L$6 -> 120.4455 | M87: =stdatdens(J87,J$4)*M$6 -> 0.1936734622 | N87: 295.07
A88: 38500 | B88: -56.5 | C88: 420.9648 | D88: 0.0006288614802 | E88: 573.57 | F88: 0.2645730139 | G88: 1.944138621 | H88: 0.5143666143 | J88: 15200 | K88: -56.5 | L88: 116.7062 | M88: 0.1876607578 | N88: 295.07
A89: 39000 | B89: -56.5 | C89: 410.9688 | D89: 0.0006139289962 | E89: 573.57 | F89: 0.258290657 | G89: 1.96764004 | H89: 0.5082230386 | J89: 15400 | K89: -56.5 | L89: 113.0830 | M89: 0.1818347213 | N89: 295.07
A90: 39500 | B90: -56.5 | C90: 401.2103 | D90: 0.0005993510881 | E90: 573.57 | F90: 0.2521574763 | G90: 1.991425553 | H90: 0.5021528416 | J90: 15600 | K90: -56.5 | L90: 109.5723 | M90: 0.1761895574 | N90: 295.07
A91: 40000 | B91: -56.5 | C91: 391.6834 | D91: 0.0005851193363 | E91: 573.57 | F91: 0.2461699296 | G91: 2.015498593 | H91: 0.4961551467 | J91: 15800 | K91: -56.5 | L91: 106.1706 | M91: 0.1707196509 | N91: 295.07
A92: 40500 | B92: -56.5 | C92: 382.3828 | D92: 0.0005712255213 | E92: 573.57 | F92: 0.2403245588 | G92: 2.039862636 | H92: 0.4902290881 | J92: 16000 | K92: -56.5 | L92: 102.8744 | M92: 0.1654195608 | N92: 295.07
A93: 41000 | B93: -56.5 | C93: 373.3030 | D93: 0.0005576616186 | E93: 573.57 | F93: 0.2346179879 | G93: 2.064521201 | H93: 0.4843738101 | J93: 16200 | K93: -56.5 | L93: 99.6806 | M93: 0.1602840151 | N93: 295.07
A94: 41500 | B94: -56.5 | C94: 364.4388 | D94: 0.0005444197944 | E94: 573.57 | F94: 0.2290469211 | G94: 2.089477846 | H94: 0.4785884674 | J94: 16400 | K94: -56.5 | L94: 96.5860 | M94: 0.1553079053 | N94: 295.07
A95: 42000 | B95: -56.5 | C95: 355.7851 | D95: 0.0005314924009 | E95: 573.57 | F95: 0.2236081407 | G95: 2.114736176 | H95: 0.4728722245 | J95: 16600 | K95: -56.5 | L95: 93.5874 | M95: 0.1504862818 | N95: 295.07
A96: 42500 | B96: -56.5 | C96: 347.3369 | D96: 0.0005188719717 | E96: 573.57 | F96: 0.2182985057 | G96: 2.140299838 | H96: 0.4672242563 | J96: 16800 | K96: -56.5 | L96: 90.6820 | M96: 0.1458143483 | N96: 295.07
A97: 43000 | B97: -56.5 | C97: 339.0893 | D97: 0.0005065512181 | E97: 573.57 | F97: 0.2131149493 | G97: 2.166172522 | H97: 0.4616437472 | J97: 17000 | K97: -56.5 | L97: 87.8667 | M97: 0.1412874577 | N97: 295.07
A98: 43500 | B98: -56.5 | C98: 331.0375 | D98: 0.000494523024 | E98: 573.57 | F98: 0.2080544779 | G98: 2.192357964 | H98: 0.4561298914 | J98: 17200 | K98: -56.5 | L98: 85.1388 | M98: 0.136901107 | N98: 295.07
A99: 44000 | B99: -56.5 | C99: 323.1770 | D99: 0.0004827804426 | E99: 573.57 | F99: 0.2031141687 | G99: 2.218859944 | H99: 0.450681893 | J99: 17400 | K99: -56.5 | L99: 82.4956 | M99: 0.1326509332 | N99: 295.07
A100: 44500 | B100: -56.5 | C100: 315.5030 | D100: 0.000471316692 | E100: 573.57 | F100: 0.1982911684 | G100: 2.24568229 | H100: 0.4452989652 | J100: 17600 | K100: -56.5 | L100: 79.9345 | M100: 0.1285327084 | N100: 295.07
A101: 45000 | B101: -56.5 | C101: 308.0113 | D101: 0.0004601251511 | E101: 573.57 | F101: 0.1935826917 | G101: 2.272828873 | H101: 0.439980331 | J101: 17800 | K101: -56.5 | L101: 77.4529 | M101: 0.1245423363 | N101: 295.07
A102: 45500 | B102: -56.5 | C102: 300.6975 | D102: 0.0004491993564 | E102: 573.57 | F102: 0.1889860189 | G102: 2.300303614 | H102: 0.4347252223 | J102: 18000 | K102: -56.5 | L102: 75.0483 | M102: 0.1206758476 | N102: 295.07
A103: 46000 | B103: -56.5 | C103: 293.5574 | D103: 0.0004385329976 | E103: 573.57 | F103: 0.1844984954 | G103: 2.328110479 | H103: 0.4295328804 | J103: 18200 | K103: -56.5 | L103: 72.7184 | M103: 0.1169293962 | N103: 295.07
A104: 46500 | B104: -56.5 | C104: 286.5868 | D104: 0.0004281199144 | E104: 573.57 | F104: 0.1801175293 | G104: 2.356253483 | H104: 0.4244025557 | J104: 18400 | K104: -56.5 | L104: 70.4608 | M104: 0.1132992557 | N104: 295.07
A105: 47000 | B105: -56.5 | C105: 279.7817 | D105: 0.0004179540926 | E105: 573.57 | F105: 0.1758405904 | G105: 2.384736689 | H105: 0.4193335074 | J105: 18600 | K105: -56.5 | L105: 68.2733 | M105: 0.1097818149 | N105: 295.07
A106: 47500 | B106: -56.5 | C106: 273.1382 | D106: 0.0004080296609 | E106: 573.57 | F106: 0.1716652086 | G106: 2.41356421 | H106: 0.4143250036 | J106: 18800 | K106: -56.5 | L106: 66.1537 | M106: 0.1063735751 | N106: 295.07
A107: 48000 | B107: -56.5 | C107: 266.6525 | D107: 0.0003983408876 | E107: 573.57 | F107: 0.1675889723 | G107: 2.442740208 | H107: 0.4093763211 | J107: 19000 | K107: -56.5 | L107: 64.1000 | M107: 0.103071146 | N107: 295.07
A108: 48500 | B108: -56.5 | C108: 260.3207 | D108: 0.0003888821767 | E108: 573.57 | F108: 0.1636095274 | G108: 2.472268896 | H108: 0.4044867456 | J108: 19200 | K108: -56.5 | L108: 62.1099 | M108: 0.09987124283 | N108: 295.07
A109: 49000 | B109: -56.5 | C109: 254.1394 | D109: 0.0003796480655 | E109: 573.57 | F109: 0.1597245754 | G109: 2.502154537 | H109: 0.399655571 | J109: 19400 | K109: -56.5 | L109: 60.1817 | M109: 0.09677068246 | N109: 295.07
A110: 49500 | B110: -56.5 | C110: 248.1048 | D110: 0.0003706332207 | E110: 573.57 | F110: 0.1559318727 | G110: 2.532401445 | H110: 0.3948820997 | J110: 19600 | K110: -56.5 | L110: 58.3133 | M110: 0.09376638077 | N110: 295.07
A111: 50000 | B111: -56.5 | C111: 242.2134 | D111: 0.0003618324358 | E111: 573.57 | F111: 0.1522292287 | G111: 2.563013989 | H111: 0.3901656426 | J111: 19800 | K111: -56.5 | L111: 56.5029 | M111: 0.09085534937 | N111: 295.07
A112: 50500 | B112: -56.5 | C112: 236.4620 | D112: 0.0003532406279 | E112: 573.57 | F112: 0.1486145049 | G112: 2.593996588 | H112: 0.3855055187 | J112: 20000 | K112: -56.5 | L112: 54.7488 | M112: 0.08803469261 | N112: 295.07
A113: 51000 | B113: -56.5 | C113: 230.8472 | D113: 0.0003448528348 | E113: 573.57 | F113: 0.1450856138 | G113: 2.625353715 | H113: 0.3809010551
A114: 51500 | B114: -56.5 | C114: 225.3656 | D114: 0.000336664212 | E114: 573.57 | F114: 0.1416405171 | G114: 2.657089897 | H114: 0.3763515871
A115: 52000 | B115: -56.5 | C115: 220.0143 | D115: 0.0003286700303 | E115: 573.57 | F115: 0.1382772252 | G115: 2.689209718 | H115: 0.3718564578
A116: 52500 | B116: -56.5 | C116: 214.7900 | D116: 0.0003208656726 | E116: 573.57 | F116: 0.1349937955 | G116: 2.721717814 | H116: 0.3674150181
A117: 53000 | B117: -56.5 | C117: 209.6897 | D117: 0.0003132466314 | E117: 573.57 | F117: 0.1317883318 | G117: 2.75461888 | H117: 0.3630266268
A118: 53500 | B118: -56.5 | C118: 204.7106 | D118: 0.0003058085064 | E118: 573.57 | F118: 0.1286589826 | G118: 2.787917665 | H118: 0.3586906503
A119: 54000 | B119: -56.5 | C119: 199.8497 | D119: 0.0002985470017 | E119: 573.57 | F119: 0.1256039407 | G119: 2.821618977 | H119: 0.3544064625
A120: 54500 | B120: -56.5 | C120: 195.1042 | D120: 0.0002914579234 | E120: 573.57 | F120: 0.1226214415 | G120: 2.855727682 | H120: 0.3501734449
A121: 55000 | B121: -56.5 | C121: 190.4714 | D121: 0.0002845371771 | E121: 573.57 | F121: 0.1197097626 | G121: 2.890248705 | H121: 0.3459909863
A122: 55500 | B122: -56.5 | C122: 185.9486 | D122: 0.0002777807657 | E122: 573.57 | F122: 0.1168672223 | G122: 2.92518703 | H122: 0.3418584829
A123: 56000 | B123: -56.5 | C123: 181.5332 | D123: 0.0002711847872 | E123: 573.57 | F123: 0.1140921789 | G123: 2.960547701 | H123: 0.3377753379
A124: 56500 | B124: -56.5 | C124: 177.2226 | D124: 0.000264745432 | E124: 573.57 | F124: 0.1113830296 | G124: 2.996335825 | H124: 0.3337409618
A125: 57000 | B125: -56.5 | C125: 173.0144 | D125: 0.0002584589809 | E125: 573.57 | F125: 0.1087382098 | G125: 3.032556567 | H125: 0.3297547722
A126: 57500 | B126: -56.5 | C126: 168.9062 | D126: 0.0002523218033 | E126: 573.57 | F126: 0.1061561919 | G126: 3.069215159 | H126: 0.3258161935
A127: 58000 | B127: -56.5 | C127: 164.8954 | D127: 0.0002463303547 | E127: 573.57 | F127: 0.1036354848 | G127: 3.106316892 | H127: 0.321924657
A128: 58500 | B128: -56.5 | C128: 160.9800 | D128: 0.0002404811745 | E128: 573.57 | F128: 0.1011746325 | G128: 3.143867124 | H128: 0.3180796009
A129: 59000 | B129: -56.5 | C129: 157.1575 | D129: 0.0002347708848 | E129: 573.57 | F129: 0.09877221379 | G129: 3.181871276 | H129: 0.3142804699
A130: 59500 | B130: -56.5 | C130: 153.4257 | D130: 0.0002291961874 | E130: 573.57 | F130: 0.09642684117 | G130: 3.220334836 | H130: 0.3105267157
A131: 60000 | B131: -56.5 | C131: 149.7826 | D131: 0.0002237538626 | E131: 573.57 | F131: 0.09413716005 | G131: 3.259263356 | H131: 0.3068177962
A132: 60500 | B132: -56.5 | C132: 146.2259 | D132: 0.0002184407673 | E132: 573.57 | F132: 0.09190184802 | G132: 3.298662457 | H132: 0.3031531758
A133: 61000 | B133: -56.5 | C133: 142.7538 | D133: 0.0002132538329 | E133: 573.57 | F133: 0.08971961408 | G133: 3.338537829 | H133: 0.2995323256
A134: 61500 | B134: -56.5 | C134: 139.3640 | D134: 0.0002081900637 | E134: 573.57 | F134: 0.08758919786 | G134: 3.378895228 | H134: 0.2959547226
A135: 62000 | B135: -56.5 | C135: 136.0548 | D135: 0.000203246535 | E135: 573.57 | F135: 0.08550936894 | G135: 3.419740481 | H135: 0.2924198505
A136: 62500 | B136: -56.5 | C136: 132.8241 | D136: 0.0001984203917 | E136: 573.57 | F136: 0.08347892612 | G136: 3.461079485 | H136: 0.2889271987
A137: 63000 | B137: =stdattemp(A137,A$4,B$4) -> -56.5 | C137: =stdatpress(A137,A$4)*C$6 -> 129.6702 | D137: =stdatdens(A137,A$4)*D$6 -> 0.0001937088464 | E137: =stdatcs(IF(B$4=0,B137,(B137-32)*5/9))*E$6 -> 573.57 | F137: =D137/$D$11 -> 0.08149669671 | G137: =SQRT($D$11/D137) -> 3.50291821 | H137: =SQRT(F137) -> 0.2854762629
A138: 63500 | B138: -56.5 | C138: 126.5911 | D138: 0.0001891091781 | E138: 573.57 | F138: 0.07956153586 | G138: 3.545262696 | H138: 0.2820665451
A139: 64000 | B139: -56.5 | C139: 123.5852 | D139: 0.0001846187301 | E139: 573.57 | F139: 0.07767232592 | G139: 3.588119056 | H139: 0.2786975528
A140: 64500 | B140: -56.5 | C140: 120.6506 | D140: 0.000180234909 | E140: 573.57 | F140: 0.07582797578 | G140: 3.631493479 | H140: 0.2753687996
A141: 65000 | B141: -56.5 | C141: 117.7858 | D141: 0.0001759551829 | E141: 573.57 | F141: 0.07402742023 | G141: 3.675392227 | H141: 0.2720798049
A142: 65500 | B142: -56.5 | C142: 114.9889 | D142: 0.0001717770801 | E142: 573.57 | F142: 0.07226961935 | G142: 3.719821638 | H142: 0.2688300938
